[Event "RUS-ch Blitz 2021"]
[Site "Sochi"]
[Date "2021.10.11"]
[Round "11.11"]
[White "Vastrukhin, Oleg"]
[Black "Rozum, Ivan"]
[Result "1/2-1/2"]
[ECO "D02"]
[WhiteElo "2382"]
[BlackElo "2529"]
[Annotator "ChessBase"]
[PlyCount "158"]
[EventDate "2021.10.11"]
[EventType "blitz"]
[EventCountry "RUS"]
[SourceTitle "playchess.com"]
[Source "ChessBase"]
[SourceQuality "1"]
[TimeControl "180+2"]

1. Nf3 {[%emt 0:00:04]} d5 {[%emt 0:00:00]} 2. g3 {[%emt 0:00:01]} Nd7 {
[%emt 0:00:05]} 3. d4 {[%emt 0:00:02]} Nb6 {[%emt 0:00:00]} 4. b3 {[%emt 0:00:
00]} Nf6 {[%emt 0:00:08]} 5. Bg2 {[%emt 0:00:00]} Bf5 {[%emt 0:00:04]} 6. Ba3 {
[%emt 0:00:00]} Nbd7 {[%emt 0:00:22]} 7. O-O {[%emt 0:00:07]} e6 {[%emt 0:00:
00]} 8. Bxf8 {[%emt 0:00:11]} Nxf8 {[%emt 0:00:00]} 9. Nbd2 {[%emt 0:00:00]}
N8d7 {[%emt 0:00:06]} 10. Nh4 {[%emt 0:00:03]} Bg6 {[%emt 0:00:08]} 11. Nxg6 {
[%emt 0:00:28]} hxg6 {[%emt 0:00:00]} 12. e4 {[%emt 0:00:05]} dxe4 {[%emt 0:00:
05]} 13. Nxe4 {[%emt 0:00:00]} Nxe4 {[%emt 0:00:05]} 14. Bxe4 {[%emt 0:00:02]}
c6 {[%emt 0:00:02]} 15. Qe2 {[%emt 0:00:36]} Nf6 {[%emt 0:00:07]} 16. Rfd1 {
[%emt 0:00:11]} Nxe4 {[%emt 0:00:04]} 17. Qxe4 {[%emt 0:00:00]} Qd5 {[%emt 0:
00:00]} 18. Qxd5 {[%emt 0:00:07]} cxd5 {[%emt 0:00:00]} 19. c4 {[%emt 0:00:03]}
dxc4 {[%emt 0:00:07]} 20. bxc4 {[%emt 0:00:00]} O-O-O {[%emt 0:00:03]} 21. Rd3
{[%emt 0:00:18]} Rh5 {[%emt 0:00:16]} 22. h4 {[%emt 0:00:04]} Ra5 {[%emt 0:00:
08]} 23. a3 {[%emt 0:00:00]} Rd7 {[%emt 0:00:14]} 24. Rb1 {[%emt 0:00:06]} b6 {
[%emt 0:00:34]} 25. Kg2 {[%emt 0:00:05]} Kd8 {[%emt 0:00:00]} 26. Kf3 {[%emt 0:
00:02]} Ke7 {[%emt 0:00:04]} 27. Ke3 {[%emt 0:00:03]} g5 {[%emt 0:00:00]} 28.
hxg5 {[%emt 0:00:00]} Rxg5 {[%emt 0:00:05]} 29. Rh1 {[%emt 0:00:12]} Ra5 {
[%emt 0:00:05]} 30. Rh7 {[%emt 0:00:11]} g6 {[%emt 0:00:00]} 31. Rh8 {[%emt 0:
00:06]} Rc7 {[%emt 0:00:16]} 32. Rc3 {[%emt 0:00:00]} e5 {[%emt 0:00:12]} 33.
dxe5 {[%emt 0:00:41]} Rxe5+ {[%emt 0:00:04]} 34. Kd4 {[%emt 0:00:01]} Rec5 {
[%emt 0:00:05]} 35. Rb8 {[%emt 0:00:08]} Kf6 {[%emt 0:00:01]} 36. Rd8 {[%emt 0:
00:07]} Ke7 {[%emt 0:00:14]} 37. Rb8 {[%emt 0:00:06]} Rd7+ {[%emt 0:00:00]} 38.
Ke4 {[%emt 0:00:00]} Kf6 {[%emt 0:00:01]} 39. f4 {[%emt 0:00:06]} Rdc7 {
[%emt 0:00:06]} 40. Kd4 {[%emt 0:00:00]} Kf5 {[%emt 0:00:03]} 41. Rd8 {[%emt 0:
00:00]} Kg4 {[%emt 0:00:02]} 42. Rd5 {[%emt 0:00:00]} f5 {[%emt 0:00:00]} 43.
Rxc5 {[%emt 0:00:06]} Rxc5 {[%emt 0:00:01]} 44. Re3 {[%emt 0:00:00]} Rc7 {
[%emt 0:00:11]} 45. Kd5 {[%emt 0:00:04]} Rc5+ {[%emt 0:00:00]} 46. Kd4 {
[%emt 0:00:00]} Rc7 {[%emt 0:00:05]} 47. Kd5 {[%emt 0:00:00]} g5 {[%emt 0:00:
02]} 48. fxg5 {[%emt 0:00:02]} Kxg5 {[%emt 0:00:01]} 49. Rf3 {[%emt 0:00:00]}
Rc5+ {[%emt 0:00:02]} 50. Kd4 {[%emt 0:00:01]} Kg4 {[%emt 0:00:00]} 51. Rc3 {
[%emt 0:00:05]} Ra5 {[%emt 0:00:06]} 52. Rb3 {[%emt 0:00:04]} Rc5 {[%emt 0:00:
01]} 53. Rc3 {[%emt 0:00:00]} Rc7 {[%emt 0:00:02]} 54. Kd5 {[%emt 0:00:03]} Rc8
{[%emt 0:00:05]} 55. Kd4 {[%emt 0:00:05]} Rd8+ {[%emt 0:00:02]} 56. Ke5 {
[%emt 0:00:00]} Re8+ {[%emt 0:00:06]} 57. Kd6 {[%emt 0:00:03]} Rc8 {[%emt 0:00:
02]} 58. Kd5 {[%emt 0:00:02]} Rc5+ {[%emt 0:00:05]} 59. Kd4 {[%emt 0:00:00]}
Kh3 {[%emt 0:00:02]} 60. Rf3 {[%emt 0:00:03]} Kg2 {[%emt 0:00:01]} 61. Rb3 {
[%emt 0:00:00]} Kf2 {[%emt 0:00:03]} 62. Rc3 {[%emt 0:00:00]} Ke2 {[%emt 0:00:
00]} 63. Rb3 {[%emt 0:00:03]} Kf2 {[%emt 0:00:03]} 64. Rc3 {[%emt 0:00:01]} Rc7
{[%emt 0:00:03]} 65. Ke5 {[%emt 0:00:01]} Rc5+ {[%emt 0:00:03]} 66. Kd4 {
[%emt 0:00:02]} Kg2 {[%emt 0:00:03]} 67. Re3 {[%emt 0:00:01]} Kh3 {[%emt 0:00:
03]} 68. Rf3 {[%emt 0:00:02]} Kg4 {[%emt 0:00:01]} 69. Rb3 {[%emt 0:00:00]} Kg5
{[%emt 0:00:04]} 70. Rf3 {[%emt 0:00:02]} Ra5 {[%emt 0:00:02]} 71. Rb3 {
[%emt 0:00:03]} Ra4 {[%emt 0:00:04]} 72. Kd5 {[%emt 0:00:01]} Ra5+ {[%emt 0:00:
01]} 73. Kc6 {[%emt 0:00:08]} Kg4 {[%emt 0:00:01]} 74. Kb7 {[%emt 0:00:02]} Ra4
{[%emt 0:00:01]} 75. Rc3 {[%emt 0:00:03]} Kh3 {[%emt 0:00:02]} 76. Rf3 {
[%emt 0:00:04]} Rxc4 {[%emt 0:00:06]} 77. Kxa7 {[%emt 0:00:04]} b5 {[%emt 0:00:
03]} 78. Rxf5 {[%emt 0:00:03]} Ra4+ {[%emt 0:00:00]} 79. Kb6 {[%emt 0:00:01]}
Rxa3 {[%emt 0:00:01]} 1/2-1/2

[Event "RUS-ch Blitz 2021"]
[Site "Sochi"]
[Date "2021.10.11"]
[Round "11.12"]
[White "Gutenev, Alexander"]
[Black "Bocharov, Dmitry"]
[Result "0-1"]
[ECO "B53"]
[WhiteElo "2455"]
[BlackElo "2517"]
[Annotator "ChessBase"]
[PlyCount "76"]
[EventDate "2021.10.11"]
[EventType "blitz"]
[EventCountry "RUS"]
[SourceTitle "playchess.com"]
[Source "ChessBase"]
[SourceQuality "1"]
[TimeControl "180+2"]

1. e4 {[%emt 0:00:00]} c5 {[%emt 0:00:09]} 2. Nf3 {[%emt 0:00:02]} d6 {[%emt 0:
00:00]} 3. d4 {[%emt 0:00:08]} cxd4 {[%emt 0:00:00]} 4. Qxd4 {[%emt 0:00:03]}
Nc6 {[%emt 0:00:00]} 5. Qe3 {[%emt 0:00:03]} Nf6 {[%emt 0:00:19]} 6. Be2 {
[%emt 0:00:00]} g6 {[%emt 0:00:08]} 7. O-O {[%emt 0:00:03]} Bg7 {[%emt 0:00:00]
} 8. Rd1 {[%emt 0:00:05]} O-O {[%emt 0:00:00]} 9. Nc3 {[%emt 0:00:01]} Nd7 {
[%emt 0:00:35]} 10. Qg5 {[%emt 0:00:23]} h6 {[%emt 0:00:58]} 11. Qh4 {[%emt 0:
00:00]} g5 {[%emt 0:00:00]} 12. Qg3 {[%emt 0:00:19]} Nf6 {[%emt 0:00:00]} 13.
h3 {[%emt 0:00:20]} Qa5 {[%emt 0:00:18]} 14. Ne1 {[%emt 0:00:25]} Ne5 {[%emt 0:
00:12]} 15. f4 {[%emt 0:00:14]} gxf4 {[%emt 0:00:00]} 16. Bxf4 {[%emt 0:00:03]}
Ng6 {[%emt 0:00:02]} 17. Be3 {[%emt 0:00:07]} Be6 {[%emt 0:00:07]} 18. Nd3 {
[%emt 0:00:08]} Rfc8 {[%emt 0:00:00]} 19. Bd2 {[%emt 0:00:43]} Qb6+ {[%emt 0:
00:00]} 20. Kh1 {[%emt 0:00:03]} Rxc3 {[%emt 0:00:00]} 21. Bxc3 {[%emt 0:00:10]
} Nxe4 {[%emt 0:00:01]} 22. Qf3 {[%emt 0:00:07]} Nxc3 {[%emt 0:00:08]} 23. bxc3
{[%emt 0:00:00]} Nh4 {[%emt 0:00:00]} 24. Qf4 {[%emt 0:00:07]} Ng6 {[%emt 0:00:
15]} 25. Qf3 {[%emt 0:00:03]} Qc7 {[%emt 0:00:07]} 26. Rab1 {[%emt 0:00:00]}
Rb8 {[%emt 0:00:00]} 27. Nb4 {[%emt 0:00:03]} Qxc3 {[%emt 0:00:14]} 28. Qxc3 {
[%emt 0:00:00]} Bxc3 {[%emt 0:00:03]} 29. Na6 {[%emt 0:00:00]} Rc8 {[%emt 0:00:
03]} 30. Rxb7 {[%emt 0:00:01]} Be5 {[%emt 0:00:07]} 31. Bd3 {[%emt 0:00:06]}
Nf4 {[%emt 0:00:04]} 32. Rxa7 {[%emt 0:00:05]} Bd5 {[%emt 0:00:08]} 33. Bf1 {
[%emt 0:00:00]} Rxc2 {[%emt 0:00:01]} 34. Rxe7 {[%emt 0:00:12]} Be4 {[%emt 0:
00:05]} 35. Nb4 {[%emt 0:00:00]} Rb2 {[%emt 0:00:01]} 36. Nd3 {[%emt 0:00:08]}
Nxd3 {[%emt 0:00:00]} 37. Rxd3 {[%emt 0:00:00]} Rb1 {[%emt 0:00:04]} 38. Rf3 {
[%emt 0:00:00]} Bxf3 {[%emt 0:00:00]} 0-1

[Event "RUS-ch Blitz 2021"]
[Site "Sochi"]
[Date "2021.10.11"]
[Round "11.13"]
[White "Potapov, Pavel"]
[Black "Kobalia, Mikhail"]
[Result "0-1"]
[ECO "B12"]
[WhiteElo "2481"]
[BlackElo "2600"]
[Annotator "ChessBase"]
[PlyCount "90"]
[EventDate "2021.10.11"]
[EventType "blitz"]
[EventCountry "RUS"]
[SourceTitle "playchess.com"]
[Source "ChessBase"]
[SourceQuality "1"]
[TimeControl "180+2"]

1. e4 {[%emt 0:00:04]} c6 {[%emt 0:00:00]} 2. d4 {[%emt 0:00:00]} d5 {[%emt 0:
00:04]} 3. e5 {[%emt 0:00:02]} Bf5 {[%emt 0:00:00]} 4. h4 {[%emt 0:00:00]} h5 {
[%emt 0:00:03]} 5. Bd3 {[%emt 0:00:02]} Bxd3 {[%emt 0:00:01]} 6. Qxd3 {[%emt 0:
00:02]} Qa5+ {[%emt 0:00:00]} 7. Nd2 {[%emt 0:00:07]} e6 {[%emt 0:00:02]} 8.
Ngf3 {[%emt 0:00:09]} Nh6 {[%emt 0:00:00]} 9. O-O {[%emt 0:00:04]} Nf5 {
[%emt 0:00:06]} 10. c4 {[%emt 0:00:09]} Qa6 {[%emt 0:00:00]} 11. b3 {[%emt 0:
00:02]} Be7 {[%emt 0:00:03]} 12. g3 {[%emt 0:00:07]} O-O {[%emt 0:00:00]} 13.
Rd1 {[%emt 0:00:19]} c5 {[%emt 0:00:06]} 14. Bb2 {[%emt 0:00:11]} Nc6 {[%emt 0:
00:04]} 15. Nf1 {[%emt 0:00:44]} dxc4 {[%emt 0:00:05]} 16. Qxc4 {[%emt 0:00:13]
} Qxc4 {[%emt 0:00:17]} 17. bxc4 {[%emt 0:00:05]} cxd4 {[%emt 0:00:00]} 18.
Nxd4 {[%emt 0:00:00]} Ncxd4 {[%emt 0:00:13]} 19. Bxd4 {[%emt 0:00:00]} Rfc8 {
[%emt 0:00:05]} 20. Rac1 {[%emt 0:00:08]} Ba3 {[%emt 0:00:05]} 21. Rc2 {
[%emt 0:00:09]} Rc7 {[%emt 0:00:15]} 22. Ne3 {[%emt 0:00:06]} Nxd4 {[%emt 0:00:
22]} 23. Rxd4 {[%emt 0:00:00]} Bc5 {[%emt 0:00:10]} 24. Rd3 {[%emt 0:00:18]}
Rac8 {[%emt 0:00:00]} 25. Nf1 {[%emt 0:00:13]} Bf8 {[%emt 0:00:12]} 26. Nd2 {
[%emt 0:00:29]} b5 {[%emt 0:00:00]} 27. Rd4 {[%emt 0:00:07]} Bb4 {[%emt 0:00:
06]} 28. Kf1 {[%emt 0:00:06]} Bxd2 {[%emt 0:00:14]} 29. Rcxd2 {[%emt 0:00:00]}
Rxc4 {[%emt 0:00:06]} 30. Rd8+ {[%emt 0:00:04]} Rxd8 {[%emt 0:00:00]} 31. Rxd8+
{[%emt 0:00:00]} Kh7 {[%emt 0:00:07]} 32. Rd7 {[%emt 0:00:00]} Ra4 {[%emt 0:00:
02]} 33. Rxf7 {[%emt 0:00:05]} Rxa2 {[%emt 0:00:03]} 34. Re7 {[%emt 0:00:00]}
b4 {[%emt 0:00:08]} 35. Rb7 {[%emt 0:00:00]} a5 {[%emt 0:00:00]} 36. f4 {
[%emt 0:00:04]} Kg6 {[%emt 0:00:08]} 37. Ke1 {[%emt 0:00:00]} Kf5 {[%emt 0:00:
06]} 38. Kd1 {[%emt 0:00:01]} g6 {[%emt 0:00:23]} 39. Rf7+ {[%emt 0:00:06]} Ke4
{[%emt 0:00:03]} 40. Kc1 {[%emt 0:00:00]} b3 {[%emt 0:00:03]} 41. Rf6 {[%emt 0:
00:00]} a4 {[%emt 0:00:02]} 42. Rxe6 {[%emt 0:00:02]} a3 {[%emt 0:00:00]} 43.
Rb6 {[%emt 0:00:06]} Ra1+ {[%emt 0:00:09]} 44. Kd2 {[%emt 0:00:00]} b2 {
[%emt 0:00:03]} 45. e6 {[%emt 0:00:00]} b1=Q {[%emt 0:00:01]} 0-1

[Event "RUS-ch Blitz 2021"]
[Site "Sochi"]
[Date "2021.10.11"]
[Round "11.14"]
[White "Popov, Valerij"]
[Black "Obgolts, Erik"]
[Result "0-1"]
[ECO "E91"]
[WhiteElo "2537"]
[BlackElo "2430"]
[Annotator "ChessBase"]
[PlyCount "66"]
[EventDate "2021.10.11"]
[EventType "blitz"]
[EventCountry "RUS"]
[SourceTitle "playchess.com"]
[Source "ChessBase"]
[SourceQuality "1"]
[TimeControl "180+2"]

1. Nf3 {[%emt 0:00:04]} Nf6 {[%emt 0:00:00]} 2. c4 {[%emt 0:00:00]} g6 {
[%emt 0:00:00]} 3. Nc3 {[%emt 0:00:02]} Bg7 {[%emt 0:00:02]} 4. e4 {[%emt 0:00:
00]} d6 {[%emt 0:00:00]} 5. d4 {[%emt 0:00:00]} O-O {[%emt 0:00:07]} 6. Be2 {
[%emt 0:00:00]} Bg4 {[%emt 0:00:00]} 7. Be3 {[%emt 0:00:05]} Nfd7 {[%emt 0:00:
00]} 8. Rc1 {[%emt 0:00:00]} e5 {[%emt 0:00:00]} 9. d5 {[%emt 0:00:03]} a5 {
[%emt 0:00:00]} 10. O-O {[%emt 0:00:08]} Na6 {[%emt 0:00:14]} 11. a3 {[%emt 0:
00:37]} f5 {[%emt 0:00:00]} 12. Ng5 {[%emt 0:00:36]} f4 {[%emt 0:00:00]} 13.
Bxg4 {[%emt 0:00:00]} Qxg5 {[%emt 0:00:06]} 14. Bd2 {[%emt 0:00:18]} Nf6 {
[%emt 0:00:06]} 15. Be2 {[%emt 0:00:41]} Nc5 {[%emt 0:00:16]} 16. f3 {[%emt 0:
00:00]} a4 {[%emt 0:00:00]} 17. Be1 {[%emt 0:00:21]} h5 {[%emt 0:00:35]} 18.
Bf2 {[%emt 0:00:00]} Nfd7 {[%emt 0:00:00]} 19. Nb5 {[%emt 0:00:06]} Rac8 {
[%emt 0:00:04]} 20. Bd3 {[%emt 0:00:00]} Qe7 {[%emt 0:00:47]} 21. Bc2 {[%emt 0:
00:01]} g5 {[%emt 0:00:00]} 22. Bxa4 {[%emt 0:00:06]} Nxa4 {[%emt 0:00:02]} 23.
Qxa4 {[%emt 0:00:01]} g4 {[%emt 0:00:26]} 24. Qd1 {[%emt 0:00:07]} Qg5 {
[%emt 0:00:07]} 25. fxg4 {[%emt 0:00:06]} hxg4 {[%emt 0:00:00]} 26. g3 {
[%emt 0:00:00]} Nf6 {[%emt 0:00:12]} 27. Nc3 {[%emt 0:00:03]} Nh5 {[%emt 0:00:
02]} 28. Qd3 {[%emt 0:00:08]} Rf6 {[%emt 0:00:03]} 29. c5 {[%emt 0:00:05]} Rcf8
{[%emt 0:00:00]} 30. cxd6 {[%emt 0:00:00]} cxd6 {[%emt 0:00:03]} 31. Ne2 {
[%emt 0:00:07]} Qh6 {[%emt 0:00:08]} 32. Rcd1 {[%emt 0:00:03]} f3 {[%emt 0:00:
16]} 33. Nc3 {[%emt 0:00:02]} Nf4 {[%emt 0:00:02]} 0-1

[Event "RUS-ch Blitz 2021"]
[Site "Sochi"]
[Date "2021.10.11"]
[Round "11.15"]
[White "Zubritskiy, Artyom"]
[Black "Khanin, Semen"]
[Result "0-1"]
[ECO "A02"]
[WhiteElo "2442"]
[BlackElo "2521"]
[Annotator "ChessBase"]
[PlyCount "69"]
[EventDate "2021.10.11"]
[EventType "blitz"]
[EventCountry "RUS"]
[SourceTitle "playchess.com"]
[Source "ChessBase"]
[SourceQuality "1"]
[TimeControl "180+2"]

1. f4 {[%emt 0:00:04]} c5 {[%emt 0:00:00]} 2. Nf3 {[%emt 0:00:02]} Nc6 {
[%emt 0:00:04]} 3. g3 {[%emt 0:00:00]} g6 {[%emt 0:00:05]} 4. Bg2 {[%emt 0:00:
00]} Bg7 {[%emt 0:00:00]} 5. O-O {[%emt 0:00:00]} d6 {[%emt 0:00:02]} 6. Nc3 {
[%emt 0:00:13]} e6 {[%emt 0:00:20]} 7. a3 {[%emt 0:00:45]} Nge7 {[%emt 0:00:03]
} 8. e3 {[%emt 0:00:31]} O-O {[%emt 0:00:03]} 9. d3 {[%emt 0:00:19]} Rb8 {
[%emt 0:00:00]} 10. Bd2 {[%emt 0:00:00]} b5 {[%emt 0:00:05]} 11. Qe2 {[%emt 0:
00:06]} a5 {[%emt 0:00:06]} 12. Rab1 {[%emt 0:00:05]} b4 {[%emt 0:00:03]} 13.
Ne4 {[%emt 0:00:04]} Ba6 {[%emt 0:00:22]} 14. a4 {[%emt 0:00:08]} f5 {[%emt 0:
00:36]} 15. Nf2 {[%emt 0:00:14]} b3 {[%emt 0:00:00]} 16. c3 {[%emt 0:00:15]} d5
{[%emt 0:00:00]} 17. Rfd1 {[%emt 0:00:10]} Qd6 {[%emt 0:00:36]} 18. Qe1 {
[%emt 0:00:00]} e5 {[%emt 0:00:07]} 19. e4 {[%emt 0:00:12]} fxe4 {[%emt 0:00:
18]} 20. dxe4 {[%emt 0:00:00]} d4 {[%emt 0:00:00]} 21. fxe5 {[%emt 0:00:15]}
Nxe5 {[%emt 0:00:02]} 22. Nxe5 {[%emt 0:00:00]} Bxe5 {[%emt 0:00:08]} 23. Ng4 {
[%emt 0:00:07]} Bg7 {[%emt 0:00:03]} 24. e5 {[%emt 0:00:08]} Qe6 {[%emt 0:00:
04]} 25. Nf6+ {[%emt 0:00:06]} Bxf6 {[%emt 0:00:14]} 26. exf6 {[%emt 0:00:00]}
Qxf6 {[%emt 0:00:05]} 27. cxd4 {[%emt 0:00:06]} cxd4 {[%emt 0:00:00]} 28. Bxa5
{[%emt 0:00:01]} Nf5 {[%emt 0:00:00]} 29. Bc7 {[%emt 0:00:07]} Rbe8 {[%emt 0:
00:01]} 30. Bd5+ {[%emt 0:00:00]} Kh8 {[%emt 0:00:07]} 31. Qb4 {[%emt 0:00:00]}
Be2 {[%emt 0:00:18]} 32. Rd2 {[%emt 0:00:06]} d3 {[%emt 0:00:04]} 33. Qf4 {
[%emt 0:00:00]} g5 {[%emt 0:00:03]} 34. Qf2 {[%emt 0:00:01]} Qg7 {[%emt 0:00:
09]} 35. Bb6 {[%emt 0:00:05]} 0-1

[Event "RUS-ch Blitz 2021"]
[Site "Sochi"]
[Date "2021.10.11"]
[Round "11.16"]
[White "Zakaryan, David"]
[Black "Zakhartsov, Vladimir"]
[Result "1/2-1/2"]
[ECO "B90"]
[WhiteElo "2283"]
[BlackElo "2514"]
[Annotator "ChessBase"]
[PlyCount "82"]
[EventDate "2021.10.11"]
[EventType "blitz"]
[EventCountry "RUS"]
[SourceTitle "playchess.com"]
[Source "ChessBase"]
[SourceQuality "1"]
[TimeControl "180+2"]

1. e4 {[%emt 0:00:00]} c5 {[%emt 0:00:04]} 2. Nf3 {[%emt 0:00:03]} d6 {[%emt 0:
00:00]} 3. d4 {[%emt 0:00:04]} Nf6 {[%emt 0:00:00]} 4. Nc3 {[%emt 0:00:00]}
cxd4 {[%emt 0:00:00]} 5. Nxd4 {[%emt 0:00:00]} a6 {[%emt 0:00:00]} 6. a3 {
[%emt 0:00:03]} g6 {[%emt 0:00:01]} 7. Be2 {[%emt 0:00:11]} Bg7 {[%emt 0:00:01]
} 8. Be3 {[%emt 0:00:05]} Nc6 {[%emt 0:00:03]} 9. Qd2 {[%emt 0:00:00]} O-O {
[%emt 0:00:16]} 10. h4 {[%emt 0:00:01]} d5 {[%emt 0:00:15]} 11. Nxc6 {[%emt 0:
00:09]} bxc6 {[%emt 0:00:00]} 12. e5 {[%emt 0:00:00]} Ng4 {[%emt 0:00:11]} 13.
Bxg4 {[%emt 0:00:07]} Bxg4 {[%emt 0:00:00]} 14. f3 {[%emt 0:00:03]} Be6 {
[%emt 0:00:09]} 15. Bh6 {[%emt 0:00:16]} Bxe5 {[%emt 0:00:01]} 16. Bxf8 {
[%emt 0:00:02]} Bg3+ {[%emt 0:00:02]} 17. Kf1 {[%emt 0:00:09]} Qxf8 {[%emt 0:
00:00]} 18. Ne2 {[%emt 0:00:00]} Be5 {[%emt 0:00:01]} 19. c3 {[%emt 0:00:01]}
a5 {[%emt 0:00:22]} 20. Re1 {[%emt 0:00:00]} Bg7 {[%emt 0:00:45]} 21. h5 {
[%emt 0:00:04]} Bc8 {[%emt 0:00:06]} 22. hxg6 {[%emt 0:00:00]} hxg6 {[%emt 0:
00:03]} 23. Nd4 {[%emt 0:00:07]} Ba6+ {[%emt 0:00:14]} 24. Kf2 {[%emt 0:00:00]}
e5 {[%emt 0:00:00]} 25. Nc2 {[%emt 0:00:14]} Rb8 {[%emt 0:00:05]} 26. b4 {
[%emt 0:00:00]} Qe7 {[%emt 0:00:16]} 27. Nd4 {[%emt 0:00:14]} Qa7 {[%emt 0:00:
06]} 28. Qg5 {[%emt 0:00:24]} exd4 {[%emt 0:00:16]} 29. Re7 {[%emt 0:00:04]}
Qb6 {[%emt 0:00:00]} 30. Qf4 {[%emt 0:00:29]} dxc3+ {[%emt 0:00:00]} 31. Kg3 {
[%emt 0:00:03]} Rf8 {[%emt 0:00:11]} 32. Qh4 {[%emt 0:00:03]} Rd8 {[%emt 0:00:
22]} 33. Rhe1 {[%emt 0:00:34]} Qb8+ {[%emt 0:00:00]} 34. Kf2 {[%emt 0:00:04]}
axb4 {[%emt 0:00:07]} 35. axb4 {[%emt 0:00:03]} c2 {[%emt 0:00:06]} 36. Rxf7 {
[%emt 0:00:10]} Kxf7 {[%emt 0:00:01]} 37. Qe7+ {[%emt 0:00:00]} Kg8 {[%emt 0:
00:02]} 38. Qe6+ {[%emt 0:00:01]} Kf8 {[%emt 0:00:04]} 39. Qe7+ {[%emt 0:00:01]
} Kg8 {[%emt 0:00:04]} 40. Qe6+ {[%emt 0:00:01]} Kf8 {[%emt 0:00:02]} 41. Qe7+
{[%emt 0:00:00]} Kg8 {[%emt 0:00:05]} 1/2-1/2

[Event "RUS-ch Blitz 2021"]
[Site "Sochi"]
[Date "2021.10.11"]
[Round "11.17"]
[White "Mikhailovsky, Vladimir"]
[Black "Demidov, Mikhail"]
[Result "1/2-1/2"]
[ECO "B06"]
[WhiteElo "2184"]
[BlackElo "2551"]
[Annotator "ChessBase"]
[PlyCount "90"]
[EventDate "2021.10.11"]
[EventType "blitz"]
[EventCountry "RUS"]
[SourceTitle "playchess.com"]
[Source "ChessBase"]
[SourceQuality "1"]
[TimeControl "180+2"]

1. e4 {[%emt 0:00:00]} g6 {[%emt 0:00:04]} 2. d4 {[%emt 0:00:02]} Bg7 {[%emt 0:
00:02]} 3. Nc3 {[%emt 0:00:02]} a6 {[%emt 0:00:00]} 4. Nf3 {[%emt 0:00:06]} b5
{[%emt 0:00:00]} 5. a4 {[%emt 0:00:08]} b4 {[%emt 0:00:00]} 6. Nd5 {[%emt 0:00:
03]} Bb7 {[%emt 0:00:09]} 7. Bd3 {[%emt 0:00:05]} a5 {[%emt 0:00:04]} 8. O-O {
[%emt 0:00:04]} e6 {[%emt 0:00:03]} 9. Nf4 {[%emt 0:00:05]} d6 {[%emt 0:00:09]}
10. Qe2 {[%emt 0:00:00]} Ne7 {[%emt 0:00:10]} 11. e5 {[%emt 0:00:05]} Ba6 {
[%emt 0:00:30]} 12. c4 {[%emt 0:00:25]} bxc3 {[%emt 0:00:02]} 13. bxc3 {
[%emt 0:00:00]} Bxd3 {[%emt 0:00:00]} 14. Nxd3 {[%emt 0:00:05]} O-O {[%emt 0:
00:06]} 15. Ba3 {[%emt 0:00:01]} Qd7 {[%emt 0:00:16]} 16. Rfb1 {[%emt 0:00:05]}
Nbc6 {[%emt 0:00:00]} 17. Rb5 {[%emt 0:00:17]} Rfb8 {[%emt 0:00:19]} 18. Rab1 {
[%emt 0:00:01]} Rxb5 {[%emt 0:00:19]} 19. Rxb5 {[%emt 0:00:02]} h6 {[%emt 0:00:
11]} 20. Qc2 {[%emt 0:00:20]} Na7 {[%emt 0:00:26]} 21. Rb7 {[%emt 0:00:22]} Qc6
{[%emt 0:00:05]} 22. Qb3 {[%emt 0:00:12]} Nac8 {[%emt 0:00:11]} 23. exd6 {
[%emt 0:00:11]} cxd6 {[%emt 0:00:11]} 24. c4 {[%emt 0:00:21]} Qe4 {[%emt 0:00:
13]} 25. c5 {[%emt 0:00:10]} dxc5 {[%emt 0:00:02]} 26. Bxc5 {[%emt 0:00:05]}
Nc6 {[%emt 0:00:08]} 27. Rb5 {[%emt 0:00:21]} N8e7 {[%emt 0:00:06]} 28. Bxe7 {
[%emt 0:00:08]} Nxe7 {[%emt 0:00:03]} 29. h3 {[%emt 0:00:00]} Nf5 {[%emt 0:00:
04]} 30. Nc5 {[%emt 0:00:08]} Qe2 {[%emt 0:00:05]} 31. d5 {[%emt 0:00:05]} exd5
{[%emt 0:00:00]} 32. Qxd5 {[%emt 0:00:01]} Re8 {[%emt 0:00:00]} 33. Rb7 {
[%emt 0:00:00]} Rf8 {[%emt 0:00:07]} 34. Ra7 {[%emt 0:00:06]} Qc2 {[%emt 0:00:
01]} 35. Rb7 {[%emt 0:00:04]} Qc1+ {[%emt 0:00:00]} 36. Kh2 {[%emt 0:00:00]}
Qf4+ {[%emt 0:00:00]} 37. Kg1 {[%emt 0:00:01]} Qc1+ {[%emt 0:00:03]} 38. Kh2 {
[%emt 0:00:01]} Qf4+ {[%emt 0:00:00]} 39. g3 {[%emt 0:00:03]} Qc1 {[%emt 0:00:
03]} 40. Kg2 {[%emt 0:00:00]} Qc2 {[%emt 0:00:05]} 41. Kg1 {[%emt 0:00:02]}
Qc1+ {[%emt 0:00:02]} 42. Kg2 {[%emt 0:00:00]} Qc2 {[%emt 0:00:00]} 43. Kg1 {
[%emt 0:00:03]} Qc1+ {[%emt 0:00:02]} 44. Kg2 {[%emt 0:00:00]} Qc2 {[%emt 0:00:
00]} 45. Kg1 {[%emt 0:00:04]} Qc1+ {[%emt 0:00:07]} 1/2-1/2